fUSD/lending_fUSD_20251221
["ID","MTS","AMOUNT","RATE_DAILY","PERIOD"]
[399422770,1766339442922,-500.0,0.00015973,2]
[399422771,1766339442935,-452.23233136,0.00015973,2]
[399422772,1766339442948,-500.0,0.00015973,2]
[399422773,1766339442961,-500.0,0.00015973,2]
[399422774,1766339442976,-500.0,0.00015973,2]
[399422775,1766339442989,-500.65341776,0.00015973,2]
[399422776,1766339443003,-168.18676432,0.00015973,2]
[399422777,1766339443017,-500.0,0.00015973,2]
[399422778,1766339443030,-500.0,0.00015973,2]
[399422779,1766339443044,-160.18648371,0.00015973,2]
[399422781,1766339443056,-162.2682575,0.00015973,2]
[399422784,1766339443070,-500.0,0.00015973,2]
[399422785,1766339443085,-500.0,0.00015973,2]
[399422786,1766339443098,-500.0,0.00015973,2]
[399422787,1766339443113,-500.0,0.00015973,2]
[399422788,1766339443125,-500.0,0.00015973,2]
[399422789,1766339443136,-500.0,0.00015973,2]
[399422790,1766339443148,-500.0,0.00015973,2]
[399422791,1766339443162,-500.0,0.00015973,2]
[399422792,1766339443177,-590.29428357,0.00015973,2]
[399422793,1766339443188,-500.47443561,0.00015973,2]
[399422794,1766339443199,-160.18740865,0.00015973,2]
[399422795,1766339443211,-509.50050033,0.00015973,2]
[399422796,1766339443225,-160.18741035,0.00015973,2]
[399422797,1766339443238,-160.18648397,0.00015973,2]
[399422798,1766339443248,-160.18546537,0.00015973,2]
[399422799,1766339443259,-160.18740865,0.00015973,2]
[399422800,1766339443271,-160.18819168,0.00015973,2]
[399422801,1766339443282,-500.0,0.00015973,2]
[399422802,1766339443294,-500.0,0.00015973,2]
[399422803,1766339443307,-160.176,0.00015973,2]
[399422804,1766339443319,-500.0,0.00015973,2]
[399422805,1766339443331,-500.0,0.00015973,2]
[399422806,1766339443344,-500.0,0.00015973,2]
[399422807,1766339443357,-160.18741035,0.00015973,2]
[399422808,1766339443370,-500.0,0.00015973,2]
[399422809,1766339443382,-160.18740865,0.00015973,2]
[399422810,1766339443393,-160.10991314,0.00015973,2]
[399422811,1766339443404,-506.42109494,0.00015973,2]
[399422812,1766339443416,-500.0,0.00015973,2]
[399422813,1766339443428,-500.0,0.00015973,2]
[399422814,1766339443446,-500.0,0.00015973,2]
[399422815,1766339443458,-500.0,0.00015973,2]
[399422816,1766339443469,-500.18172396,0.00015973,2]
[399422817,1766339443481,-374.4166707,0.00015973,2]
[399422818,1766339443493,-500.0,0.00015973,2]
[399422819,1766339443504,-160.18740865,0.00015973,2]
[399422820,1766339443517,-500.0,0.00015973,2]
[399422821,1766339443529,-500.0,0.00015973,2]
[399422822,1766339443541,-500.0,0.00015973,2]
[399422823,1766339443553,-500.0,0.00015973,2]
[399422824,1766339443564,-500.0,0.00015973,2]
[399422825,1766339443575,-500.0,0.00015973,2]
[399422826,1766339443586,-500.0,0.00015973,2]
[399422827,1766339443598,-500.0,0.00015973,2]
[399422828,1766339443609,-329.18672895,0.00015973,2]
[399422829,1766339443621,-500.0,0.00015973,2]
[399422830,1766339443632,-551.71631931,0.00015973,2]
[399422831,1766339443643,-483.03971098,0.00015973,2]
[399422832,1766339443655,-500.0,0.00015973,2]
[399422833,1766339443667,-500.0,0.00015973,2]
[399422834,1766339443679,-165.56666104,0.00015973,2]
[399422835,1766339443691,-307.28848797,0.00015973,2]
[399422836,1766339443702,-168.59717172,0.00015973,2]
[399422837,1766339443713,-500.0,0.00015973,2]
[399422838,1766339443725,-150.0,0.00015978,2]
[399422839,1766339443737,-150.0,0.0001598,2]
[399422840,1766339443748,-150.0,0.0001598,2]
[399422841,1766339443760,-150.0,0.00015998,2]
[399422842,1766339443772,-150.0,0.00016005,2]
[399422843,1766339443783,-151.0,0.00016009,2]
[399422844,1766339443795,-150.0,0.00016011,2]
[399422845,1766339443807,-3000.0,0.00016012,2]
[399422846,1766339443818,-3000.0,0.00016012,2]
[399422847,1766339443830,-150.0,0.00016016,2]
[399422848,1766339443842,-150.0,0.00016029,2]
[399422849,1766339443853,-150.0,0.00016031,2]
[399422850,1766339443865,-150.0,0.00016043,2]
[399422851,1766339443876,-150.0,0.00016043,2]
[399422852,1766339443888,-150.0,0.00016043,2]
[399422853,1766339443899,-150.0,0.00016043,2]
[399422854,1766339443911,-150.0,0.0001606,2]
[399422855,1766339443923,-211.33,0.00016074,2]
[399422856,1766339443934,-150.0,0.00016074,2]
[399422857,1766339443946,-150.0,0.00016076,2]
[399422858,1766339443958,-299.62,0.00016077,2]
[399422859,1766339443970,-150.0,0.0001608,2]
[399422860,1766339443982,-150.0,0.00016084,2]
[399422861,1766339443994,-150.0,0.00016091,2]
[399422862,1766339444006,-150.0,0.00016106,2]
[399422863,1766339444018,-150.0,0.00016106,2]
[399422864,1766339444030,-6503.45,0.00016116,2]
[399422865,1766339444041,-150.0,0.00016118,2]
[399422866,1766339444053,-150.0,0.00016122,2]
[399422867,1766339444065,-150.0,0.00016137,2]
[399422868,1766339444078,-150.0,0.00016137,2]
[399422869,1766339444090,-150.0,0.00016137,2]
[399422870,1766339444106,-150.0,0.00016137,2]
[399422871,1766339444120,-150.0,0.00016137,2]
[399422872,1766339444132,-150.0,0.00016137,2]
[399422873,1766339444145,-150.0,0.00016137,2]
[399422874,1766339444157,-150.0,0.00016137,2]
[399422875,1766339444169,-150.0,0.00016152,2]
[399422876,1766339444181,-7924.28328956,0.00016154,2]
[399422877,1766339444193,-150.0,0.00016156,2]
[399422878,1766339444206,-150.0,0.00016168,2]
[399422879,1766339444218,-150.0,0.00016168,2]
[399422880,1766339444230,-150.0,0.00016183,2]
[399422881,1766339444241,-150.0,0.0001619,2]
[399422882,1766339444254,-150.0,0.00016194,2]
[399422883,1766339444266,-150.0,0.00016198,2]
[399422884,1766339444278,-150.0,0.000162,2]
[399422885,1766339444292,-150.0,0.00016214,2]
[399422886,1766339444305,-150.0,0.00016231,2]
[399422887,1766339444316,-150.0,0.00016231,2]
[399422888,1766339444328,-150.0,0.00016231,2]
[399422889,1766339444340,-150.0,0.00016231,2]
[399422890,1766339444354,-1613.0,0.00016232,2]
[399422891,1766339444369,-6453.0,0.00016239,2]
[399422892,1766339444382,-150.0,0.00016243,2]
[399422893,1766339444394,-150.0,0.00016245,2]
[399422894,1766339444406,-150.0,0.00016258,2]
[399422895,1766339444419,-150.0,0.00016263,2]
[399422896,1766339444430,-150.0,0.00016269,2]
[399422897,1766339444442,-150.0,0.00016276,2]
[399422898,1766339444455,-150.0,0.00016294,2]
[399422899,1766339444468,-150.0,0.00016294,2]
[399422900,1766339444481,-150.0,0.00016296,2]
[399422901,1766339444494,-150.0,0.00016307,2]
[399422902,1766339444507,-150.0,0.00016307,2]
[399422903,1766339444522,-150.0,0.00016307,2]
[399422904,1766339444535,-150.0,0.00016307,2]
[399422905,1766339444547,-150.0,0.00016319,2]
[399422906,1766339444559,-2129.0,0.0001632,2]
[399422907,1766339444572,-150.0,0.00016326,2]
[399422908,1766339444586,-150.0,0.00016338,2]
[399422909,1766339444599,-403.3988679,0.00016338,2]
[399422910,1766339444610,-150.0,0.00016345,2]
[399422911,1766339444622,-150.0,0.00016349,2]
[399422912,1766339444634,-150.0,0.00016349,2]
[399422913,1766339444645,-150.0,0.00016357,2]
[399422914,1766339444658,-150.0,0.00016357,2]
[399422915,1766339444670,-150.0,0.00016369,2]
[399422916,1766339444683,-150.0,0.0001638,2]
[399422917,1766339444696,-150.0,0.00016382,2]
[399422918,1766339444709,-150.0,0.00016389,2]
[399422919,1766339444720,-150.0,0.000164,2]
[399422920,1766339444732,-150.0,0.00016402,2]
[399422921,1766339444744,-150.0,0.0001642,2]
[399422922,1766339444756,-150.0,0.0001642,2]
[399422923,1766339444768,-150.0,0.0001642,2]
[399422924,1766339444779,-150.0,0.0001642,2]
[399422925,1766339444791,-150.0,0.0001642,2]
[399422926,1766339444803,-10000.0,0.00016421,2]
[399422927,1766339444814,-150.0,0.0001643,2]
[399422928,1766339444827,-500.0,0.00016438,2]
[399422929,1766339444839,-500.0,0.00016438,2]
[399422930,1766339444851,-500.0,0.00016438,2]
[399422931,1766339444863,-500.0,0.00016438,2]
[399422932,1766339444875,-500.0,0.00016438,2]
[399422933,1766339444886,-500.0,0.00016438,2]
[399422934,1766339444898,-500.0,0.00016438,2]
[399422935,1766339444910,-636.525525,0.00016438,2]
[399422936,1766339444922,-2025.49832114,0.00016438,2]
[399422937,1766339444933,-2025.49832114,0.00016438,2]
[399422938,1766339444945,-2025.49832114,0.00016438,2]
[399422939,1766339444956,-2025.49832114,0.00016438,2]
[399422940,1766339444968,-2025.49832114,0.00016438,2]
[399422941,1766339444980,-2025.49832114,0.00016438,2]
[399422942,1766339444992,-2025.49832114,0.00016438,2]
[399422943,1766339445004,-2025.49832114,0.00016438,2]
[399422944,1766339445016,-2025.49832114,0.00016438,2]
[399422945,1766339445029,-2025.49832114,0.00016438,2]
[399422946,1766339445041,-2025.49832114,0.00016438,2]
[399422947,1766339445054,-2025.49832114,0.00016438,2]
[399422948,1766339445066,-2025.49832114,0.00016438,2]
[399422949,1766339445078,-2025.49832114,0.00016438,2]
[399422950,1766339445090,-2025.49832114,0.00016438,2]
[399422951,1766339445104,-2025.49832114,0.00016438,2]
[399422952,1766339445117,-2025.49832114,0.00016438,2]
[399422953,1766339445128,-2025.49832114,0.00016438,2]
[399422954,1766339445140,-2025.49832114,0.00016438,2]
[399422955,1766339445152,-2025.49832114,0.00016438,2]
[399422956,1766339445164,-2025.49832114,0.00016438,2]
[399422957,1766339445176,-2025.49832114,0.00016438,2]
[399422958,1766339445188,-2025.49832114,0.00016438,2]
[399422959,1766339445200,-2025.49832114,0.00016438,2]
[399422960,1766339445212,-2025.49832114,0.00016438,2]
[399422961,1766339445224,-2025.49832114,0.00016438,2]
[399422962,1766339445237,-2025.49832114,0.00016438,2]
[399422963,1766339445248,-2025.49832114,0.00016438,2]
[399422964,1766339445260,-2025.49832114,0.00016438,2]
[399422965,1766339445273,-2025.49832114,0.00016438,2]
[399422966,1766339445286,-2025.49832114,0.00016438,2]
[399422967,1766339445298,-2025.49832114,0.00016438,2]
[399422968,1766339445310,-2025.49832114,0.00016438,2]
[399422969,1766339445323,-2025.49832114,0.00016438,2]
[399422970,1766339445336,-2025.49832114,0.00016438,2]
[399422971,1766339445348,-2025.49832114,0.00016438,2]
[399422992,1766339445644,-2025.49832114,0.00016438,2]
[399422993,1766339445756,-2025.49832114,0.00016438,2]
[399422994,1766339445780,-2025.49832114,0.00016438,2]
[399422995,1766339445790,-2025.49832114,0.00016438,2]
[399422996,1766339445799,-2025.49832114,0.00016438,2]
[399422997,1766339445809,-2025.49832114,0.00016438,2]
[399422998,1766339445819,-2025.49832114,0.00016438,2]
[399422999,1766339445829,-2025.49832114,0.00016438,2]
[399423000,1766339445839,-2025.49832114,0.00016438,2]
[399423001,1766339445848,-2025.49832114,0.00016438,2]
[399423002,1766339445858,-2025.49832114,0.00016438,2]
[399423003,1766339445867,-2025.49832114,0.00016438,2]
[399423004,1766339445876,-2025.49832114,0.00016438,2]
[399423005,1766339445885,-2025.49832114,0.00016438,2]
[399423006,1766339445895,-2025.49832114,0.00016438,2]
[399423007,1766339445904,-2025.49832114,0.00016438,2]
[399423008,1766339445914,-2025.49832114,0.00016438,2]
[399423009,1766339445923,-2025.49832114,0.00016438,2]
[399423010,1766339445932,-2025.49832114,0.00016438,2]
[399423011,1766339445941,-2025.49832114,0.00016438,2]
[399423012,1766339445951,-2025.49832114,0.00016438,2]
[399423013,1766339445961,-2025.49832114,0.00016438,2]
[399423014,1766339445971,-2025.49832114,0.00016438,2]
[399423015,1766339445981,-2025.49832114,0.00016438,2]
[399423016,1766339445991,-2025.49832114,0.00016438,2]
[399423017,1766339446002,-2025.49832114,0.00016438,2]
[399423018,1766339446012,-681.56,0.00016438,2]
[399423019,1766339446021,-681.56,0.00016438,2]
[399423020,1766339446031,-681.56,0.00016438,2]
[399423021,1766339446041,-681.56,0.00016438,2]
[399423023,1766339446050,-681.56,0.00016438,2]
[399423025,1766339446060,-681.56,0.00016438,2]
[399423027,1766339446069,-681.56,0.00016438,2]
[399423029,1766339446078,-1999.77770753,0.00016438,2]
[399423031,1766339446087,-1999.77770753,0.00016438,2]
[399423033,1766339446098,-1999.77770753,0.00016438,2]
[399423034,1766339446110,-1999.77770753,0.00016438,2]
[399423035,1766339446121,-1999.77770753,0.00016438,2]
[399423036,1766339446130,-1999.77770753,0.00016438,2]
[399423037,1766339446139,-1999.77770753,0.00016438,2]
[399423038,1766339446149,-1999.77770753,0.00016438,2]
[399423039,1766339446159,-1999.77770753,0.00016438,2]
[399423040,1766339446168,-1999.77770753,0.00016438,2]
[399423041,1766339446179,-1999.77770753,0.00016438,2]
[399423042,1766339446189,-1999.77770753,0.00016438,2]
[399423043,1766339446198,-1999.77770753,0.00016438,2]
[399423044,1766339446208,-1999.77770753,0.00016438,2]
[399423045,1766339446218,-1999.77770753,0.00016438,2]
[399423046,1766339446227,-1999.77770753,0.00016438,2]
[399423047,1766339446237,-1999.77770753,0.00016438,2]
[399423048,1766339446247,-1999.77770753,0.00016438,2]
[399423049,1766339446257,-1999.77770753,0.00016438,2]
[399423050,1766339446266,-1999.77770753,0.00016438,2]
[399423051,1766339446275,-1999.77770753,0.00016438,2]
[399423052,1766339446284,-2333.07399202,0.00016438,2]
[399423053,1766339446293,-800.0,0.00016438,2]
[399423054,1766339446303,-553.63,0.00016438,2]
[399423055,1766339446313,-150.0,0.0001644,2]
[399423056,1766339446324,-150.0,0.00016452,2]
[399423057,1766339446334,-150.0,0.00016455,2]
[399423058,1766339446344,-150.0,0.00016458,2]
[399423059,1766339446354,-150.0,0.00016461,2]
[399423060,1766339446363,-150.0,0.00016477,2]
[399423061,1766339446372,-150.0,0.00016477,2]
[399423062,1766339446382,-166.45,0.00016482,2]
[399423063,1766339446392,-150.0,0.00016483,2]
[399423064,1766339446401,-150.0,0.00016483,2]
[399423065,1766339446411,-150.0,0.00016492,2]
[399423066,1766339446421,-150.0,0.00016496,2]
[399423067,1766339446431,-176.11,0.00016499,2]
[399423068,1766339446440,-150.0,0.00016501,2]
[399423069,1766339446449,-150.0,0.00016509,2]
[399423070,1766339446459,-150.0,0.00016514,2]
[399423071,1766339446468,-1000.0,0.00016521,2]
[399423072,1766339446477,-1000.0,0.00016521,2]
[399423073,1766339446486,-1000.0,0.00016521,2]
[399423074,1766339446496,-311.84683956,0.00016521,2]
[399423075,1766339446505,-810.71387342,0.00016521,2]
[399423076,1766339446514,-1000.0,0.00016521,2]
[399423077,1766339446524,-726.54246888,0.00016521,2]
[399423078,1766339446533,-479.05040621,0.00016521,2]
[399423079,1766339446543,-1017.55500559,0.00016521,2]
[399423080,1766339446552,-486.87494443,0.00016521,2]
[399423081,1766339446562,-1000.0,0.00016521,2]
[399423082,1766339446571,-1000.0,0.00016521,2]
[399423083,1766339446580,-1000.0,0.00016521,2]
[399423084,1766339446590,-1000.0,0.00016521,2]
[399423085,1766339446599,-1000.0,0.00016521,2]
[399423086,1766339446610,-1000.0,0.00016521,2]
[399423087,1766339446620,-1000.0,0.00016521,2]
[399423088,1766339446629,-500.77244015,0.00016521,2]
[399423089,1766339446639,-1000.0,0.00016521,2]
[399423090,1766339446649,-1000.0,0.00016521,2]
[399423091,1766339446658,-1000.0,0.00016521,2]
[399423092,1766339446667,-1000.0,0.00016521,2]
[399423093,1766339446677,-1000.0,0.00016521,2]
[399423094,1766339446686,-177.38138354,0.00016521,2]
[399423095,1766339446695,-500.67170266,0.00016521,2]
[399423096,1766339446705,-500.52093975,0.00016521,2]
[399423097,1766339446715,-1000.0,0.00016521,2]
[399423098,1766339446724,-500.0,0.00016521,2]
[399423099,1766339446734,-1000.0,0.00016521,2]
[399423100,1766339446743,-1000.0,0.00016521,2]
[399423101,1766339446753,-1001.48988543,0.00016521,2]
[399423102,1766339446763,-576.10062402,0.00016521,2]
[399423103,1766339446773,-1000.0,0.00016521,2]
[399423104,1766339446783,-1000.0,0.00016521,2]
[399423105,1766339446793,-1000.0,0.00016521,2]
[399423106,1766339446803,-1000.0,0.00016521,2]
[399423107,1766339446813,-897.75313595,0.00016521,2]
[399423108,1766339446823,-1000.0,0.00016521,2]
[399423109,1766339446833,-1000.0,0.00016521,2]
[399423110,1766339446843,-501.73216536,0.00016521,2]
[399423111,1766339446852,-1000.0,0.00016521,2]
[399423112,1766339446861,-1000.0,0.00016521,2]
[399423113,1766339446871,-669.31135743,0.00016521,2]
[399423114,1766339446881,-1000.0,0.00016521,2]
[399423115,1766339446890,-1000.0,0.00016521,2]
[399423116,1766339446901,-150.0,0.00016523,2]
[399423117,1766339446910,-166.45,0.00016525,2]
[399423118,1766339446920,-150.0,0.00016533,2]
[399423119,1766339446930,-150.0,0.00016546,2]
[399423120,1766339446940,-150.0,0.00016546,2]
[399423121,1766339446950,-150.0,0.00016554,2]
[399423122,1766339446959,-176.11,0.00016557,2]
[399423123,1766339446968,-3500.0,0.0001656,2]
[399423124,1766339446978,-3500.0,0.0001656,2]
[399423125,1766339446988,-150.0,0.00016562,2]
[399423126,1766339446997,-150.0,0.00016562,2]
[399423127,1766339447008,-150.0,0.00016562,2]
[399423128,1766339447018,-166.45,0.00016567,2]
[399423129,1766339447027,-150.0,0.00016571,2]
[399423130,1766339447038,-150.0,0.00016577,2]
[399423131,1766339447048,-150.0,0.00016585,2]
[399423132,1766339447058,-150.0,0.00016609,2]
[399423133,1766339447068,-150.0,0.00016609,2]
[399423134,1766339447079,-150.0,0.00016609,2]
[399423135,1766339447088,-150.0,0.00016609,2]
[399423136,1766339447099,-150.0,0.00016615,2]
[399423137,1766339447112,-150.0,0.00016616,2]
[399423138,1766339447122,-150.0,0.00016622,2]
[399423139,1766339447132,-150.0,0.0001664,2]
[399423140,1766339447143,-150.0,0.00016647,2]
[399423141,1766339447153,-150.0,0.00016647,2]
[399423142,1766339447163,-150.0,0.00016647,2]
[399423143,1766339447174,-150.0,0.00016647,2]
[399423144,1766339447184,-579.81774733,0.00016649,2]
[399423145,1766339447194,-150.0,0.00016668,2]
[399423146,1766339447203,-150.0,0.00016672,2]
[399423147,1766339447214,-150.0,0.00016672,2]
[399423148,1766339447225,-150.0,0.00016677,2]
[399423149,1766339447236,-150.0,0.00016683,2]
[399423150,1766339447246,-150.0,0.00016684,2]
[399423151,1766339447255,-150.0,0.00016703,2]
[399423152,1766339447264,-150.0,0.00016703,2]
[399423153,1766339447273,-150.0,0.00016708,2]
[399423154,1766339447283,-164.5,0.00016712,2]
[399423155,1766339447293,-150.0,0.00016721,2]
[399423156,1766339447302,-150.0,0.00016722,2]
[399423157,1766339447313,-150.0,0.00016735,2]
[399423158,1766339447328,-150.0,0.00016735,2]
[399423159,1766339447338,-150.0,0.00016739,2]
[399423160,1766339447348,-198.94914877,0.00016741,2]
[399423161,1766339447357,-150.0,0.00016744,2]
[399423162,1766339447367,-150.0,0.0001676,2]
[399423163,1766339447376,-150.0,0.00016766,2]
[399423164,1766339447385,-150.0,0.0001677,2]
[399423165,1766339447395,-150.0,0.00016774,2]
[399423166,1766339447404,-150.0,0.00016774,2]
[399423167,1766339447413,-150.0,0.00016798,2]
[399423168,1766339447423,-150.0,0.00016798,2]
[399423169,1766339447434,-150.0,0.00016798,2]
[399423170,1766339447444,-150.0,0.00016798,2]
[399423171,1766339447454,-150.0,0.00016801,2]
[399423172,1766339447463,-150.0,0.00016804,2]
[399423173,1766339447472,-150.0,0.00016816,2]
[399423174,1766339447482,-150.0,0.00016816,2]
[399423175,1766339447492,-150.0,0.00016827,2]
[399423176,1766339447502,-150.0,0.00016829,2]
[399423177,1766339447513,-150.0,0.00016832,2]
[399423178,1766339447524,-150.0,0.00016835,2]
[399423179,1766339447534,-226.0,0.00016836,2]
[399423180,1766339447543,-362.0,0.00016849,2]
[399423181,1766339447553,-7855.9782019,0.00016854,2]
[399423182,1766339447562,-3670.3266395,0.00016854,2]
[399423183,1766339447572,-150.0,0.0001686,2]
[399423184,1766339447581,-150.0,0.0001686,2]
[399423185,1766339447590,-150.0,0.00016863,2]
[399423186,1766339447599,-150.0,0.00016865,2]
[399423187,1766339447608,-150.0,0.00016873,2]
[399423188,1766339447619,-150.0,0.0001688,2]
[399423189,1766339447629,-15711.9564039,0.00016884,2]
[399423190,1766339447639,-150.0,0.00016892,2]
[399423191,1766339447648,-150.0,0.00016894,2]
[399423192,1766339447657,-1130.1245209,0.000169,2]
[399423193,1766339447666,-170.00069611,0.000169,2]
[399423194,1766339447675,-7924.28328956,0.000169,2]
[399423195,1766339447685,-203.5745508,0.000169,2]
[399423196,1766339447695,-262.48165762,0.000169,2]
[399423197,1766339447704,-550.54952029,0.000169,2]
[399423198,1766339447713,-1401.26181929,0.000169,2]
[399423199,1766339447722,-150.0,0.00016911,2]
[399423200,1766339447731,-150.0,0.00016923,2]
[399423201,1766339447741,-150.0,0.00016923,2]
[399423202,1766339447750,-150.0,0.00016925,2]
[399423203,1766339447760,-150.0,0.00016926,2]
[399423204,1766339447770,-150.0,0.00016933,2]
[399423205,1766339447779,-150.0,0.00016949,2]
[399423206,1766339447789,-150.0,0.00016955,2]
[399423207,1766339447798,-150.0,0.00016955,2]
[399423208,1766339447807,-150.0,0.00016973,2]
[399423209,1766339447816,-150.32225297,0.00016973,2]
[399423210,1766339447826,-549.74315086,0.00016983,2]
[399423211,1766339447835,-152.0542516,0.00016986,2]
[399423212,1766339447845,-158.48329942,0.00016986,2]
[399423213,1766339447854,-160.33063992,0.00016986,2]
[399423214,1766339447863,-155.64705311,0.00016986,2]
[399423215,1766339447875,-164.52110484,0.00016986,2]
[399423216,1766339447885,-152.11986511,0.00016986,2]
[399423217,1766339447896,-156.76422926,0.00016986,2]
[399423218,1766339447908,-157.7543509,0.00016986,2]
[399423219,1766339447918,-150.82546103,0.00016986,2]
[399423220,1766339447928,-151.72084113,0.00016986,2]
[399423221,1766339447938,-151.68546766,0.00016986,2]
[399423222,1766339447948,-152.94375339,0.00016986,2]
[399423223,1766339447957,-162.0002847,0.00016986,2]
[399423224,1766339447967,-152.70737667,0.00016986,2]
[399423225,1766339447977,-605.72274006,0.0001699,2]
[399423226,1766339447987,-605.72274006,0.0001699,2]
[399423227,1766339447997,-151.0,0.00016997,2]
[399423228,1766339448006,-666.0,0.00016999,2]
[399423229,1766339448015,-300.0,0.00016999,2]
[399423230,1766339448025,-300.0,0.00016999,2]
[399423231,1766339448034,-666.0,0.00016999,2]
[399423232,1766339448044,-681.56,0.00016999,2]
[399423233,1766339448054,-681.56,0.00016999,2]
[399423234,1766339448064,-681.56,0.00016999,2]
[399423235,1766339448075,-681.56,0.00016999,2]
[399423236,1766339448085,-681.56,0.00016999,2]
[399423237,1766339448095,-681.56,0.00016999,2]
[399423238,1766339448109,-681.56,0.00016999,2]
[399423239,1766339448119,-681.56,0.00016999,2]
[399423240,1766339448130,-681.56,0.00016999,2]
[399423241,1766339448140,-681.56,0.00016999,2]
[399423242,1766339448151,-681.56,0.00016999,2]
[399423243,1766339448161,-681.56,0.00016999,2]
[399423244,1766339448170,-681.56,0.00016999,2]
[399423245,1766339448182,-681.56,0.00016999,2]
[399423246,1766339448192,-219.01053538,0.00016999,2]
[399423247,1766339448826,-462.54946462,0.00016999,2]
[399423248,1766339448886,-77.3860454,0.00016999,2]
[399423249,1766339448899,-604.1739546,0.00016999,2]
[399423250,1766339448911,-681.60076263,0.00016999,2]
[399423251,1766339448922,-1268.21134691,0.00017,2]
[399423252,1766339448943,-871.06,0.00017,2]
[399423253,1766339448998,-1719681.46349132,0.00017,2]
[399423254,1766339449015,-286.9649925,0.00017,2]
[399423255,1766339449157,-13220.67230969,0.00014609,2]
[399423256,1766339449304,-75.04505051,0.00014609,2]
[399423257,1766339449319,-1038.39988,0.00014609,2]
[399423258,1766339449331,-12579.33630635,0.00014609,2]
[399423259,1766339449340,-403.39886788,0.00016619,2]
[399423260,1766339449349,-266395.23570362,0.00017,2]
[399423261,1766339449361,-627884.814478,0.00017,2]
[399423262,1766339449383,-445002.41299248,0.00017,2]
[399423263,1766339449395,-237611.25540449,0.00017,2]
[399423264,1766339449406,-190991.957,0.00017,2]
[399423265,1766339449605,-151.0,0.00015464,2]
[399423266,1766339449616,-26844.53050099,0.00017,2]
[399423267,1766339449633,-8755.15126901,0.00017,2]
[399423268,1766339450230,441.2294,9.983e-05,2]
[399423269,1766339458241,410.0,0.00033151,30]
[399423270,1766339459166,410.0,0.00034521,30]
[399423271,1766339476700,150.0,0.000356,30]
[399423272,1766339496944,1035.457,9.882e-05,2]
[399423273,1766339496989,1035.458,0.00034912,40]
[399423275,1766339541675,-300.0,0.00010083,2]
[399423276,1766339541696,-344.86707805,0.00010083,2]
[399423277,1766339541717,-500.0,0.00010083,2]
[399423278,1766339541741,-280.13395765,0.00010083,2]
[399423279,1766339541762,-500.0,0.00010083,2]
[399423280,1766339541784,-249.28947196,0.00010083,2]
[399423281,1766339563035,-4501.70949234,0.00010084,2]
[399423283,1766339583231,500.0,9.983e-05,2]
[399423284,1766339606974,151.0,0.00035616,31]
[399423285,1766339607276,151.0,0.00035616,31]
[399423286,1766339607613,202.790376,0.00035616,31]
[399423287,1766339655201,2500.0,9.984e-05,2]
[399423289,1766339666722,150.0,0.000356,30]
[399423336,1766339719154,291.53582258,9.982e-05,2]
[399423337,1766339725160,291.53582256,0.00010012,2]
[399423338,1766339728688,162.0643,9.984e-05,2]
[399423339,1766339731149,291.53582256,0.00010042,2]
[399423340,1766339731713,1219.28,0.00035616,30]
[399423342,1766339738407,375.51504338,0.00010042,2]
[399423343,1766339738780,2421.14,0.00035616,30]
[399423344,1766339745347,1219.28,0.00035616,30]
[399423345,1766339751431,1219.28,0.00035616,30]
[399423346,1766339758653,1219.28,0.00035616,30]
[399423349,1766339768412,1219.28,0.00035616,30]
[399423350,1766339775798,331.51,0.00035616,30]